{"text_format":"3","workbook":"xlsx","n_sheets":2,"sheets":["Hoja1","Hoja2"],"not_rendered":{"images":2},"read":"whole","date_system":"1900"}

{"sheet":"Hoja1","index":0,"n_rows":18,"n_cols":11,"rows_kept":18,"merged":[[0,2,0,5],[0,8,0,11],[1,1,1,5],[1,7,1,11],[2,1,2,2],[2,7,2,8],[4,1,4,5],[4,7,4,11],[5,1,5,5],[5,7,5,11],[8,1,8,5],[8,7,8,11],[14,1,14,5],[14,7,14,11],[17,3,17,5],[17,9,17,11]]}
[null,null,"ENCUESTA DE SATISFACCIÓN S/A",{"$nulls":5},"ENCUESTA DE SATISFACCIÓN S/A"]
[null,"FOR 8.2 CRP 03   REV. 01   FECHA DE REV.  02/06/15",{"$nulls":5},"FOR 8.2 CRP 03   REV. 01   FECHA DE REV.  02/06/15"]
[null,"FECHA:",{"$nulls":5},"FECHA:"]
[]
[null,"Por favor, dedique unos momentos a completar esta pequeña encuesta, la información que nos proporciones será utilizada para mejorar el servicio que prestamos.",{"$nulls":5},"Por favor, dedique unos momentos a completar esta pequeña encuesta, la información que nos proporciones será utilizada para mejorar el servicio que prestamos."]
[null,"1. ¿ QUE LE PARECIO EL SERVICIO DEL EVENTO?",{"$nulls":5},"1. ¿ QUE LE PARECIO EL SERVICIO DEL EVENTO?"]
[null,"Excelente","Bueno","Regular","Malo",null,null,"Excelente","Bueno","Regular","Malo"]
[null,3,2,1,0,null,null,3,2,1,0]
[null,"2. ¿QUE LE PARECIO EL MONTAJE DEL EVENTO?",{"$nulls":5},"2. ¿QUE LE PARECIO EL MONTAJE DEL EVENTO?"]
[null,"Excelente","Bueno","Regular","Malo",null,null,"Excelente","Bueno","Regular","Malo"]
[null,3,2,1,0,null,null,3,2,1,0]
[null,"3. ¿ QUE LE PARECIO EL ORDEN Y LA LIMPIEZA DE LAS INSTALACIONES?",{"$nulls":5},"3. ¿ QUE LE PARECIO EL ORDEN Y LA LIMPIEZA DE LAS INSTALACIONES?"]
[null,"Excelente","Bueno","Regular","Malo",null,null,"Excelente","Bueno","Regular","Malo"]
[null,3,2,1,0,null,null,3,2,1,0]
[null,"4. ¿ QUE LE PARECIO EL SEGUIMIENTO REALIZADO POR EL PERSONAL DE EVENTOS?",{"$nulls":5},"4. ¿ QUE LE PARECIO EL SEGUIMIENTO REALIZADO POR EL PERSONAL DE EVENTOS?"]
[null,"Excelente","Bueno","Regular","Malo",null,null,"Excelente","Bueno","Regular","Malo"]
[null,3,2,1,0,null,null,3,2,1,0]
[{"$nulls":3},"¡¡MUCHAS GRACIAS!!",{"$nulls":5},"¡¡MUCHAS GRACIAS!!"]

{"sheet":"Hoja2","index":1,"n_rows":12,"n_cols":13,"rows_kept":12,"merged":[[1,0,3,0],[1,1,1,11],[2,1,2,11],[3,2,3,8],[3,9,4,9],[3,10,4,10],[3,11,4,11]]}
[]
[null,"CONCENTRADO DE SATISFACCIÓN DEL CLIENTE EVENTOS  S/A"]
[null,"FOR 8.2 CRP 04    REV. 01   FECHA DE REV. 02-06-15"]
[null,null,"VALOR DE LA PREGUNTA",{"$nulls":6},"SUMA ALCANZADA","SUMA ESPERADA","% DE SATISFACCIÓN"]
["NUMERO DE PREGUNTA ","VALOR ESPECIFICO",3,null,2,null,1,null,0]
["PREGUNTA 1",30,0,{"$f":"(C6*C5)","v":0},0,{"$f":"(E6*E5)","v":0},0,{"$f":"(G6*G5)","v":0},0,{"$f":"SUM(H6+F6+D6)","v":0},{"$f":"(B11*C5)","v":0},{"$f":"(J6*100/K6)","v":{"$error":"#DIV/0!"}}]
["PREGUNTA 2",20,0,{"$f":"(C7*C5)","v":0},0,{"$f":"(E7*E5)","v":0},0,{"$f":"(G7*G5)","v":0},null,{"$f":"SUM(H7+F7+D7)","v":0},{"$f":"(B11*C5)","v":0},{"$f":"(J7*100/K7)","v":{"$error":"#DIV/0!"}}]
["PREGUNTA 3",20,0,{"$f":"(C8*C5)","v":0},0,{"$f":"(E8*E5)","v":0},0,{"$f":"(G8*G5)","v":0},null,{"$f":"SUM(H8+F8+D8)","v":0},{"$f":"(B11*C5)","v":0},{"$f":"(J8*100/K8)","v":{"$error":"#DIV/0!"}}]
["PREGUNTA 4",30,0,{"$f":"(C9*C5)","v":0},0,{"$f":"(E9*E5)","v":0},0,{"$f":"(G9*G5)","v":0},null,0,{"$f":"(B11*C5)","v":0},{"$error":"#DIV/0!"}]
[]
["NUMERO DE ENCUESTAS REALIZADAS",0,{"$nulls":10},"VALOR ALCANZADO"]
[{"$nulls":10},"SATISFACCIÓN GLOBAL DE:",{"$f":"(M12/4)","v":{"$error":"#DIV/0!"}},{"$f":"SUM(L6:L9)","v":{"$error":"#DIV/0!"}}]